[Event "GER-ch Youth-U16 2022"]
[Site "Willingen"]
[Date "2022.06.05"]
[Round "2.15"]
[White "Beyer, Lorenz"]
[Black "Spriestersbach, Kai"]
[Result "1-0"]
[ECO "A48"]
[WhiteElo "1512"]
[BlackElo "1948"]
[Annotator "TA"]
[PlyCount "49"]
[EventDate "2022.06.05"]
[EventType "swiss"]
[EventRounds "9"]
[EventCountry "GER"]
[SourceTitle "playchess.com"]
[Source "ChessBase"]
[SourceQuality "1"]
[TimeControl "40/4500+30:900+30"]

{[%evp 10,49,0,-3,41,18,27,-8,2,0,9,7,14,0,11,0,38,10,0,-6,-9,-11,18,-18,-20,-209,-192,-277,-260,-275,-202,-443,-205,-201,349,377,374,384,346,349,29994,29995]} 1. d4 {[%emt 0:00:00]} Nf6 {[%emt 0:00:00]} 2. Nf3 {[%emt 0:00:00]} g6 {[%emt 0:00:00]} 3. Bf4 {[%emt 0:00:00]} Bg7 {[%emt 0:00:00]} 4. e3 {[%emt 0:00:00]} O-O {[%emt 0:00:00]} 5. Be2 {[%emt 0:00:00]} d6 {[%emt 0:00:00]} 6. O-O {[%emt 0:00:00]} Nfd7 {[%emt 0:00:00] A48: 1 d4 Nf6 2 Nf3 g6: Torre, London and Colle Systems.} 7. c3 {[%emt 0:00:00]} e5 {[%emt 0:00:00]} 8. dxe5 {[%emt 0:00:00]} dxe5 {[%emt 0:00:00] The position is equal.} 9. Bg3 {[%emt 0:00:00]} h6 {[%emt 0:00:00]} 10. Nbd2 {[%emt 0:00:00]} Nc6 {[%emt 0:00:00] [#]} 11. Qc2 $146 {[%emt 0:00:00]} ({Predecessor:} 11. e4 Qe7 12. Nc4 Nd8 13. Ne3 Ne6 14. Bc4 c6 15. Bh4 Ng5 16. Kh1 Nc5 17. Qc2 {½-½ (52) Atanasov,A (2144)-Paciorkowski,L (2194) Charlotte 2020}) 11... f5 {[%emt 0:00:00]} 12. h3 {[%emt 0:00:00]} Qf6 {[%emt 0:06:10]} 13. Bc4+ {[%emt 0:00:44]} Kh8 {[%emt 0:01:53]} 14. Rad1 {[%emt 0:01:16]} Nb6 {[%emt 0:04:03]} 15. Bb5 {[%emt 0:01:50] Threatens to win with Bxc6.} f4 {[%emt 0:03:48]} 16. exf4 {[%emt 0:10:31]} exf4 {[%emt 0:00:16] White must now prevent ...Bf5.} 17. Nh4 {[%emt 0:03:07]} (17. Bh2 $11) 17... Ne7 $19 {[%emt 0:05:23]} 18. Bd3 {[%emt 0:04:42]} (18. Rde1 $142 fxg3 19. fxg3) 18... g5 {[%emt 0:08:53]} ({Don't go for} 18... fxg3 $2 19. fxg3 Bf5 20. Nxf5 gxf5 21. Nb3 $19) 19. Ne4 {[%emt 0:00:47]} Qc6 {[%emt 0:00:44]} 20. Qe2 $2 {[%emt 0:04:10]} (20. Nf3) 20... fxg3 {[%emt 0:05:46]} (20... gxh4 $142 21. Bxh4 f3 22. gxf3 Ng6) 21. Nxg5 {[%emt 0:02:23]} hxg5 $4 {[%emt 0:01:41][%mdl 8192] [#]} (21... gxf2+ $19 22. Rxf2 Rxf2 23. Qxe7 Bd7 $1 24. Kxf2 hxg5 25. Ng6+ Kg8 26. Qxg5 Qf6+ 27. Qxf6 Bxf6) 22. Ng6+ $1 $18 {[%emt 0:03:27][%mdl 64] Decoy} Nxg6 {[%emt 0:06:09]} 23. Qh5+ {[%emt 0:03:55]} Kg8 {[%emt 0:00:16]} 24. Bxg6 {[%emt 0:00:19][%csl Gg6][%cal Rh5h7] Dancing on a razor blade.} Re8 $2 {[%emt 0:08:32]} (24... gxf2+ $2 25. Rxf2 (25. Kh1 Qxg6 26. Qxg6 g4 $16) 25... Qxg6 26. Rxf8+ Kxf8 27. Qxg6 $18) (24... Qxg6 $18 25. Qxg6 gxf2+ 26. Rxf2 Rxf2) 25. Qh7+ {[%emt 0:01:17] Weighted Error Value: White=0.36/Black=0.95} 1-0

[Event "GER-ch Youth-U16 2022"]
[Site "Willingen"]
[Date "2022.06.05"]
[Round "2.16"]
[White "Rempe, Jonas"]
[Black "Weidenhoefer, Max"]
[Result "1-0"]
[ECO "B12"]
[WhiteElo "1856"]
[BlackElo "1945"]
[Annotator "TA"]
[PlyCount "79"]
[EventDate "2022.06.05"]
[EventType "swiss"]
[EventRounds "9"]
[EventCountry "GER"]
[SourceTitle "playchess.com"]
[Source "ChessBase"]
[SourceQuality "1"]
[TimeControl "40/4500+30:900+30"]

{[%evp 12,79,1,-25,-7,-28,-5,0,0,-5,16,-70,-22,-54,-52,-93,-15,-18,-3,-64,0,0,90,82,27,16,280,270,578,571,534,444,427,399,739,727,693,684,929,933,900,819,1556,531,538,530,523,0,314,0,547,523,480,446,714,714,29991,29992,29994,29960,29992,29993,29993,29990,29990,29991,29997,29996,29996,29997]} 1. e4 {[%emt 0:00:00]} c6 {[%emt 0:00:00]} 2. d4 {[%emt 0:00:00]} d5 {[%emt 0:00:00]} 3. f3 {[%emt 0:00:00]} e6 {[%emt 0:00:00]} 4. Nc3 {[%emt 0:13:35]} Nf6 {[%emt 0:00:00]} 5. Bg5 {[%emt 0:09:17]} Be7 {[%emt 0:00:00]} 6. Qd2 {[%emt 0:03:41]} O-O {[%emt 0:00:44]} 7. O-O-O {[%emt 0:12:12]} b5 {[%emt 0:07:05] [#] B12: Caro-Kann: Advance Variation.} 8. Bd3 $146 {[%emt 0:08:14]} ({Predecessor:} 8. e5 Nfd7 9. f4 a5 10. Bd3 Nb6 11. Kb1 a4 12. Nf3 b4 13. Ne2 Nc4 14. Qe1 Bxg5 15. Nxg5 {1-0 (30) Vucinic,G (1920)-Milosevic,R (2150) Obrenovac 2008}) 8... Re8 {[%emt 0:14:12]} 9. h4 $1 {[%emt 0:15:01]} b4 {[%emt 0:03:20] The position is equal.} 10. Nce2 {[%emt 0:01:00]} a5 {[%emt 0:03:42]} 11. g4 {[%emt 0:02:33]} ({Better is} 11. e5 $11 Nfd7 12. Qf4) 11... Ba6 {[%emt 0:03:47]} ({Black should try} 11... dxe4 $15 12. fxe4 Nxg4) 12. e5 {[%emt 0:02:08]} Nfd7 {[%emt 0:01:06]} 13. Bxe7 {[%emt 0:00:28]} Rxe7 {[%emt 0:00:28]} (13... Qxe7 $17 14. Bxa6 Nxa6) 14. f4 {[%emt 0:00:23]} c5 {[%emt 0:03:01] Black wants to play ...c4.} 15. f5 {[%emt 0:04:00]} (15. Bxa6 $11 Rxa6 16. Nf3) 15... c4 {[%emt 0:06:50]} (15... b3 $15 16. axb3 Bxd3 17. Qxd3 a4) 16. f6 $1 $11 {[%emt 0:00:20]} Re8 {[%emt 0:01:30] [#]} (16... gxf6 $2 17. exf6 cxd3 18. Qg5+ (18. fxe7 Qxe7 19. cxd3 Nc6 $16) 18... Kf8 19. fxe7+ Qxe7 20. cxd3 $18) (16... Nxf6 $1 $11 17. exf6 gxf6) 17. Bxh7+ $1 {[%emt 0:06:28]} Kxh7 {[%emt 0:00:07]} 18. g5 {[%emt 0:00:02][%cal Og5g6] aiming for g6+!} Rh8 $2 {[%emt 0:09:41][%mdl 8192]} (18... c3 $11 {and Black stays safe.} 19. bxc3 Kg8) 19. Nf4 $18 {[%emt 0:01:32]} gxf6 $2 {[%emt 0:10:18]} (19... Kg8) 20. gxf6 {[%emt 0:00:42]} Nxf6 {[%emt 0:00:10]} 21. exf6 {[%emt 0:00:22]} Qxf6 {[%emt 0:00:01][%cal Oc4c3]} 22. Nf3 {[%emt 0:00:36]} Rg8 {[%emt 0:03:02]} (22... c3 23. bxc3 bxc3) 23. Ng5+ {[%emt 0:01:00]} Kh8 {[%emt 0:00:04]} 24. c3 {[%emt 0:01:10]} bxc3 {[%emt 0:04:47]} 25. bxc3 {[%emt 0:00:01]} Ra7 {[%emt 0:00:10]} 26. Rdf1 {[%emt 0:01:18][%cal Oh4h5] Black must now prevent h5!} Rb7 {[%emt 0:01:19] [#]} 27. Qe2 {[%emt 0:00:28]} (27. h5 $142 $1 {[%cal Of4g6] Intending Ng6+! and mate.} Rxg5 28. Ng6+ $1 {[%mdl 512]} Kg7 29. h6+ Kxg6 30. Rxf6+ Kxf6 31. Qf4+ Ke7 32. Qxg5+ f6 33. Qg7+ Kd6 34. Qf8+ Kc7 35. Qc5+ Nc6 36. Rg1) 27... Qh6 {[%emt 0:01:52] Prevents Ng6+.} 28. Qe5+ {[%emt 0:01:11]} Qg7 {[%emt 0:00:50]} 29. Qe2 $40 {[%emt 0:00:17][%mdl 128] White mounts an attack.} Qh6 {[%emt 0:00:26] [#]} 30. Qe5+ $2 {[%emt 0:00:02] The board is on fire.} (30. Nfxe6 $1 {[%mdl 512] Qe5+ would kill now.} Nc6 {[#]} 31. Qd2 $1) 30... Qg7 {[%emt 0:00:45]} 31. Qxg7+ {[%emt 0:00:02]} ({Not} 31. Qe2 Qh6 $18) 31... Kxg7 {[%emt 0:03:34]} 32. Nh5+ {[%emt 0:01:34]} Kg6 {[%emt 0:01:07]} (32... Kf8 $142 33. Nxe6+ Ke7) 33. Nf6 {[%emt 0:00:06] White wants to mate with Rhg1.} Rf8 {[%emt 0:01:54]} 34. Rhg1 {[%emt 0:00:20] White mates.} Kh6 {[%emt 0:00:20]} 35. Ng4+ {[%emt 0:00:20] Pair of Knights!} Kh5 {[%emt 0:04:46]} 36. Rf6 {[%emt 0:00:02][%csl Gg4][%cal Rf6h6]} Rh8 {[%emt 0:01:01]} 37. Nxf7 {[%emt 0:00:01]} Rh7 {[%emt 0:00:18]} 38. Nge5 {[%emt 0:01:04]} Nd7 {[%emt 0:00:57]} 39. Rg5+ {[%emt 0:00:44]} Kxh4 {[%emt 0:00:02]} 40. Rf1 {[%emt 0:00:05] Weighted Error Value: White=0.50/Black=0.65} 1-0

[Event "GER-ch Youth-U16 2022"]
[Site "Willingen"]
[Date "2022.06.06"]
[Round "3.1"]
[White "Lerchl, Clemens"]
[Black "Lutsko, Artem"]
[Result "0-1"]
[ECO "B92"]
[WhiteElo "1843"]
[BlackElo "2392"]
[Annotator "TA"]
[PlyCount "50"]
[EventDate "2022.06.05"]
[EventType "swiss"]
[EventRounds "9"]
[EventCountry "GER"]
[SourceTitle "playchess.com"]
[Source "ChessBase"]
[SourceQuality "1"]
[TimeControl "40/4500+30:900+30"]

{[%evp 16,50,14,0,6,0,0,-4,-8,-14,-10,-31,-11,-78,-88,-100,-95,-107,-115,-163,-170,-365,-328,-400,-392,-383,-386,-507,-503,-599,-589,-918,-984,-967,-954,-1137,-1021]} 1. e4 {[%emt 0:00:00]} c5 {[%emt 0:00:00]} 2. Nf3 {[%emt 0:00:00]} d6 {[%emt 0:00:00]} 3. d4 {[%emt 0:00:00]} cxd4 {[%emt 0:00:00]} 4. Nxd4 {[%emt 0:00:00]} Nf6 {[%emt 0:00:00]} 5. Nc3 {[%emt 0:00:00]} a6 {[%emt 0:00:00]} 6. Be2 {[%emt 0:00:00]} e5 {[%emt 0:00:00]} 7. Nb3 {[%emt 0:00:00]} Be7 {[%emt 0:00:00]} 8. O-O {[%emt 0:00:00]} O-O {[%emt 0:00:00]} 9. Kh1 {[%emt 0:00:00]} Nc6 {[%emt 0:00:00] B92: Sicilian Najdorf: 6 Be2.} 10. Be3 {[%emt 0:00:00]} Be6 {[%emt 0:00:00]} 11. f4 {[%emt 0:00:00]} d5 {[%emt 0:00:00][%cal Bd6d5,Bd5d4,Bd4c3,Bc3b2][%mdl 32] The position is equal.} 12. f5 {[%emt 0:00:00]} d4 {[%emt 0:00:00]} 13. fxe6 {[%emt 0:00:00] [#]} fxe6 $146 {[%emt 0:00:00]} ({Predecessor:} 13... dxe3 14. exf7+ Kh8 15. Nd5 Nxe4 16. Nxe3 Nd4 17. c3 Nxb3 18. axb3 Bc5 19. Bd3 Nxc3 20. bxc3 Bxe3 {0-1 (34) Pourkashiyan,A (2322)-Todev,S (1956) Chess.com INT 2021}) 14. Bg5 {[%emt 0:21:57]} dxc3 $17 {[%emt 0:00:00]} 15. Bxf6 {[%emt 0:01:03]} cxb2 {[%emt 0:04:12]} ({Much weaker is} 15... Rxf6 $6 16. bxc3 Qxd1 17. Rfxd1 $11 (17. Raxd1 Rxf1+ 18. Bxf1 Rd8 $11)) 16. Rb1 {[%emt 0:00:10] [#] Black must now prevent Qxd8.} Qxd1 {[%emt 0:15:23] Chess con chili.} 17. Bxd1 {[%emt 0:00:06]} (17. Rfxd1 $17 gxf6 18. Rxb2) 17... Ba3 $19 {[%emt 0:02:17]} ({Not} 17... Bxf6 18. Rxb2 Be7 19. Bf3 $17) 18. Bg4 $2 {[%emt 0:03:44]} (18. Nd2 {is the only way for White.} Rxf6 19. Rxf6 gxf6 20. Nc4) 18... Rxf6 {[%emt 0:00:10]} 19. Rxf6 {[%emt 0:00:38]} gxf6 {[%emt 0:00:03]} 20. Bxe6+ {[%emt 0:00:05]} Kf8 {[%emt 0:07:32]} 21. Nd2 {[%emt 0:05:29]} b5 {[%emt 0:14:21] Prevents Nc4. Black is clearly winning.} 22. Rd1 {[%emt 0:02:27]} Nd4 {[%emt 0:04:03][%csl LRc2,LRe6]} 23. Bd5 {[%emt 0:10:35]} Rc8 {[%emt 0:00:04]} 24. c4 {[%emt 0:00:12]} Bb4 {[%emt 0:00:23] And now ...Bxd2 would win.} 25. Bb7 {[%emt 0:09:31] [#]} Bxd2 $1 {White got outplayed after the opening.  Weighted Error Value: White=0.74/Black=0.00 (flawless)} 0-1

[Event "GER-ch Youth-U16 2022"]
[Site "Willingen"]
[Date "2022.06.06"]
[Round "3.2"]
[White "Petrovskyi, Vadym"]
[Black "Laux, Dominik"]
[Result "1/2-1/2"]
[ECO "B18"]
[WhiteElo "2330"]
[BlackElo "2263"]
[Annotator "TA"]
[PlyCount "43"]
[EventDate "2022.06.05"]
[EventType "swiss"]
[EventRounds "9"]
[EventCountry "GER"]
[SourceTitle "playchess.com"]
[Source "ChessBase"]
[SourceQuality "1"]
[TimeControl "40/4500+30:900+30"]

{[%evp 13,43,9,14,12,0,4,2,7,12,0,20,18,12,0,0,0,0,0,0,0,0,0,0,0,20,0,0,0,0,0,12,-10]} 1. e4 {[%emt 0:00:00]} c6 {[%emt 0:00:00]} 2. d4 {[%emt 0:00:00]} d5 {[%emt 0:00:00]} 3. Nc3 {[%emt 0:00:00][%cal Bb1c3,Bc3e4,Be4g3][%mdl 32]} dxe4 {[%emt 0:00:00]} 4. Nxe4 {[%emt 0:00:00]} Bf5 {[%emt 0:00:00]} 5. Ng3 {[%emt 0:00:00]} Bg6 {[%emt 0:00:00]} 6. Nh3 {[%emt 0:00:00]} Nf6 $1 {[%emt 0:00:00][%mdl 4] is more profitable than 6...e6 at the moment.} 7. Nf4 {[%emt 0:00:00]} e5 {[%emt 0:00:00] The position is equal.} 8. dxe5 {[%emt 0:00:00] B18: Classical Caro-Kann: 4...Bf5 sidelines.} Qa5+ {[%emt 0:00:00]} 9. c3 {[%emt 0:00:00]} Qxe5+ {[%emt 0:00:00]} 10. Be2 {[%emt 0:00:00]} Bc5 {[%emt 0:00:00]} 11. O-O {[%emt 0:00:00]} O-O {[%emt 0:00:00]} 12. Nxg6 {[%emt 0:23:43]} hxg6 {[%emt 0:00:00] [#]} 13. Qc2 $146 {[%emt 0:00:35]} ({Predecessor:} 13. Bc4 Nbd7 14. Qf3 Qc7 15. Bb3 Rfe8 16. Bg5 Qe5 17. Bf4 Qe7 18. Qd3 Nf8 19. h3 {0-1 (67) Lugovskoy,M (2470)-Novik,M (2484) St Petersburg 2015}) 13... a5 {[%emt 0:04:28]} 14. Bd2 {[%emt 0:10:05]} Nbd7 {[%emt 0:03:27]} 15. b4 {[%emt 0:03:00]} Bb6 {[%emt 0:03:16]} 16. Rae1 {[%emt 0:07:55]} Qd6 {[%emt 0:04:55]} 17. a3 {[%emt 0:06:28]} axb4 {[%emt 0:14:54]} 18. axb4 {[%emt 0:03:01]} Ne5 {[%emt 0:02:45]} 19. c4 {[%emt 0:00:45]} Bd4 {[%emt 0:00:53]} 20. Rd1 {[%emt 0:01:41] [#] Hoping for Bc3.} c5 {[%emt 0:06:42]} 21. Be3 {[%emt 0:04:30] Threatens to win with bxc5.} Rfd8 {[%emt 0:05:38]} 22. Ne4 {[%emt 0:10:31] An interesting draw.  Weighted Error Value: White=0.03 (flawless) /Black=0.05 (flawless)} 1/2-1/2

[Event "GER-ch Youth-U16 2022"]
[Site "Willingen"]
[Date "2022.06.06"]
[Round "3.3"]
[White "Sidletskyi, Ivan"]
[Black "Mimkes, Antal"]
[Result "1/2-1/2"]
[ECO "C55"]
[WhiteElo "2084"]
[BlackElo "1696"]
[Annotator "TA"]
[PlyCount "63"]
[EventDate "2022.06.05"]
[EventType "swiss"]
[EventRounds "9"]
[EventCountry "GER"]
[SourceTitle "playchess.com"]
[Source "ChessBase"]
[SourceQuality "1"]
[TimeControl "40/4500+30:900+30"]

{[%evp 14,63,57,31,42,37,54,52,44,33,34,59,50,41,41,41,27,43,59,0,0,-135,39,41,32,31,168,72,55,0,39,13,56,57,55,70,70,0,0,0,53,0,0,0,0,0,0,0,0,0,0,0]} 1. e4 {[%emt 0:00:00]} e5 {[%emt 0:00:00]} 2. Nf3 {[%emt 0:00:00]} Nc6 {[%emt 0:00:00]} 3. Bc4 {[%emt 0:00:00]} Nf6 {[%emt 0:00:00]} 4. d3 {[%emt 0:00:00]} d5 {[%emt 0:00:00]} 5. exd5 {[%emt 0:00:00]} Nxd5 {[%emt 0:00:00]} 6. O-O {[%emt 0:00:00][%cal Be1g1,Bg1f2,Bf2f1,Bh1f1,Bf1e1,Be1e5][%mdl 32]} Bc5 {[%emt 0:00:00]} 7. Re1 {[%emt 0:00:00]} O-O {[%emt 0:00:00]} 8. Nxe5 {[%emt 0:00:00]} (8. c3 {seems wilder.} Bb6 9. Nbd2 Nf6 10. b4) 8... Nxe5 {[%emt 0:00:00] C24: Bishop's Opening: 2...Nf6.} 9. Rxe5 {[%emt 0:00:00]} Bxf2+ {[%emt 0:00:00][%mdl 64] [#] Decoy} 10. Kxf2 {[%emt 0:00:00]} Qh4+ $1 {[%emt 0:00:00] White is slightly better.} 11. Kf1 {[%emt 0:00:00]} Qf6+ {[%emt 0:00:00]} 12. Qf3 {[%emt 0:00:00]} Qxe5 {[%emt 0:00:00]} 13. Bxd5 {[%emt 0:00:00]} c6 {[%emt 0:00:00]} 14. Bb3 {[%emt 0:06:23] Black must now prevent Qg3.} Qxh2 {[%emt 0:00:00]} 15. Be3 {[%emt 0:20:25]} a5 {[%emt 0:00:00] [#]} 16. Nc3 $146 {[%emt 0:05:35]} (16. a4 $14) ({Predecessor:} 16. Bg1 Qh4 17. a4 Be6 18. Nd2 Rae8 19. Qf2 Qg4 20. Qd4 Qh5 21. Qc5 Bd5 22. Qf2 Bxb3 23. Nxb3 {½-½ (37) Carr,T (2086)-Cook,D (2216) ICCF email 2014}) 16... a4 {[%emt 0:11:23]} 17. Nxa4 {[%emt 0:10:59]} (17. Bxa4 $11 Ra5 18. g4) 17... Ra5 $2 {[%emt 0:01:48]} (17... Qh1+ 18. Bg1 Ra5) (17... Qh1+ $17 18. Bg1 Ra5) 18. g4 $14 {[%emt 0:02:35] [#] Threatens to win with Bc5.} h5 {[%emt 0:19:10]} 19. Qg2 {[%emt 0:01:35]} Qe5 {[%emt 0:15:44]} (19... Qxg2+ $14 20. Kxg2 Re8) 20. Re1 {[%emt 0:02:11]} (20. Bd2 $18 {is the precise move to win.}) 20... Bxg4 $16 {[%emt 0:01:37]} 21. Bc5 {[%emt 0:03:57]} Qf4+ {[%emt 0:09:58]} (21... Qg5 $5 {[%cal Ra5a4]} 22. Bxf8 Kxf8 $11) 22. Qf2 {[%emt 0:03:21] Really sharp!} Rxa4 {[%emt 0:03:33]} ({Don't take} 22... Bh3+ 23. Kg1 Qxf2+ 24. Kxf2 $16) (22... Qg5 {with more complications.} 23. Kg1 Be6+ 24. Kh1 Re8) 23. Bxa4 {[%emt 0:00:45]} Qxa4 {[%emt 0:00:32]} 24. Bxf8 {[%emt 0:00:20]} Kxf8 $11 {[%emt 0:00:09][%mdl 4096] Endgame KQR-KQB} 25. Qe3 {[%emt 0:01:31]} (25. Qc5+ $14 Kg8 26. Re8+ Kh7 27. Qc4 Bh3+ 28. Ke2 Bg4+ 29. Kf1 Bh3+ 30. Ke2) 25... Be6 $1 {[%emt 0:03:27]} ({Don't play} 25... Kg8 26. Qe8+ Kh7 27. Qe4+ Qxe4 28. Rxe4 $16) 26. c4 {[%emt 0:07:50]} Qa5 {[%emt 0:04:56] Inhibits Qc5+.} (26... Kg8 $11) 27. Qe5 {[%emt 0:03:28]} ({White should play} 27. Qf4 $1 $14 Kg8 28. Qb8+ Kh7 29. Qe5 (29. Qxb7 $2 Qf5+ 30. Ke2 Qf4 $19) 29... Qxe5 30. Rxe5) 27... Qd2 {[%emt 0:04:27] ( -> ...Bh3+). The position is equal.} 28. Qb8+ {[%emt 0:01:14]} Ke7 {[%emt 0:02:08]} 29. Qc7+ {[%emt 0:01:55]} Ke8 {[%emt 0:03:15]} 30. Qb8+ {[%emt 0:06:37]} Ke7 {[%emt 0:00:13]} 31. Qc7+ {[%emt 0:05:14]} Ke8 {[%emt 0:01:48]} 32. Qb8+ {[%emt 0:00:40] Weighted Error Value: White=0.32/Black=0.25 (precise)} 1/2-1/2

[Event "GER-ch Youth-U16 2022"]
[Site "Willingen"]
[Date "2022.06.06"]
[Round "3.4"]
[White "Hommer, Jeremy"]
[Black "Farokhi, Keyvan"]
[Result "0-1"]
[ECO "B29"]
[WhiteElo "2152"]
[BlackElo "2360"]
[Annotator "TA"]
[PlyCount "112"]
[EventDate "2022.06.05"]
[EventType "swiss"]
[EventRounds "9"]
[EventCountry "GER"]
[SourceTitle "playchess.com"]
[Source "ChessBase"]
[SourceQuality "1"]
[TimeControl "40/4500+30:900+30"]

{[%evp 9,112,2,23,0,0,0,0,4,6,0,13,0,0,0,0,-6,0,-6,21,19,12,12,12,15,10,9,59,0,33,26,59,30,43,43,43,43,43,43,77,33,35,33,36,39,33,33,33,35,58,8,9,0,0,0,0,0,0,0,0,0,0,0,0,-8,-8,-8,-8,-8,-10,-36,-36,-27,-36,-39,-48,-257,-214,-29972,-29973,-29974,-29975,-29975,-29976,-29976,-29977,-29977,-29978,-29973,-29976,-29982,-29983,-29983,-29984,-29985,-29986,-29986,-29987,-29987,-29985,-29985,-29986,-29986,29986,-29987,-29987]} 1. e4 {[%emt 0:00:00]} c5 {[%emt 0:00:00]} 2. Nf3 {[%emt 0:00:00]} Nf6 {[%emt 0:00:00]} 3. e5 {[%emt 0:00:00]} Nd5 {[%emt 0:00:00]} 4. Nc3 {[%emt 0:00:00]} e6 {[%emt 0:00:00]} 5. g3 {[%emt 0:02:47]} Nxc3 {[%emt 0:00:00]} 6. bxc3 {[%emt 0:03:56] B29: Sicilian: 2 Nf3 Nf6 (Nimzowitsch Variation).} Nc6 {[%emt 0:00:00]} 7. d3 {[%emt 0:01:44]} d6 {[%emt 0:01:18]} 8. exd6 {[%emt 0:01:13] The position is equal.} Bxd6 {[%emt 0:00:36]} 9. Bg2 {[%emt 0:00:08]} O-O {[%emt 0:01:44]} 10. O-O {[%emt 0:00:05]} Qc7 {[%emt 0:05:40] [#]} 11. c4 $146 {[%emt 0:02:52]} ({Predecessor:} 11. Ng5 h6 12. Ne4 Be7 13. Bf4 e5 14. Be3 b6 15. f4 Bb7 16. f5 f6 17. Qh5 {1-0 (32) Schulz,J-Haida,A Brno 1929}) 11... b6 {[%emt 0:03:58]} 12. Bb2 {[%emt 0:01:24]} Bb7 {[%emt 0:01:44]} 13. Qd2 {[%emt 0:08:30]} Ne5 {[%emt 0:18:03]} 14. Nxe5 {[%emt 0:07:06]} (14. Bxe5 {looks sharper.} Bxe5 15. Nxe5 Bxg2 16. Kxg2 Qxe5 17. a4) 14... Bxg2 {[%emt 0:00:12]} 15. Kxg2 {[%emt 0:00:45]} Bxe5 {[%emt 0:00:10]} 16. Bxe5 {[%emt 0:00:46]} Qxe5 {[%emt 0:00:04]} 17. a4 {[%emt 0:00:26][%cal Ba2a4,Ba4a5][%mdl 32]} Rad8 {[%emt 0:02:24]} (17... Qc7 $11) 18. Qe1 {[%emt 0:05:25]} (18. Rfe1 $14 Qd4 19. Red1) 18... Qf5 {[%emt 0:07:26]} 19. a5 {[%emt 0:01:20]} h5 {[%emt 0:00:12]} 20. h4 {[%emt 0:03:43]} Rd4 {[%emt 0:03:10][%cal Od4h4]} 21. Qe3 {[%emt 0:00:49]} e5 {[%emt 0:05:31]} 22. axb6 {[%emt 0:05:41]} axb6 {[%emt 0:00:06]} 23. f3 {[%emt 0:00:15] Inhibits e4.} Re8 {[%emt 0:00:55]} 24. Rfe1 {[%emt 0:02:40]} (24. Rfb1 $5 {[%cal Rb1b6]}) 24... Re6 {[%emt 0:00:32]} 25. Qg5 {[%emt 0:10:13]} (25. Ra8+ {seems wilder.} Kh7 26. Rb8 Qg6 27. Ra1) 25... Qxg5 {[%emt 0:05:54]} 26. hxg5 $14 {[%emt 0:00:05][%mdl 4096] Endgame KRR-KRR} Kh7 $1 {[%emt 0:00:17]} 27. Ra7 {[%emt 0:00:18]} Kg6 {[%emt 0:00:29]} 28. Rb7 {[%emt 0:00:21]} h4 {[%emt 0:04:22]} 29. Ra1 {[%emt 0:03:42]} ({Better is} 29. Rb1 $14) 29... hxg3 $11 {[%emt 0:00:20]} 30. Kxg3 {[%emt 0:05:44]} Rf4 {[%emt 0:00:56]} 31. Raa7 {[%emt 0:03:44]} Rf5 $1 {[%emt 0:00:52]} 32. Ra6 {[%emt 0:04:20]} Rxg5+ {[%emt 0:00:33]} 33. Kf2 {[%emt 0:00:13]} f6 {[%emt 0:01:33]} 34. Raxb6 {[%emt 0:00:18]} Rxb6 {[%emt 0:00:20]} 35. Rxb6 {[%emt 0:00:05] KR-KR} Kf5 {[%emt 0:00:09]} 36. Rc6 {[%emt 0:05:18]} Kf4 {[%emt 0:00:48] ...Rh5 is the strong threat.} 37. Rxc5 {[%emt 0:00:03]} Rh5 {[%emt 0:09:11] Threatens to win with ...Rh2+.} 38. Kg2 {[%emt 0:02:52] Against Rh2+} Ke3 {[%emt 0:00:15]} 39. f4 {[%emt 0:00:36]} Kxf4 {[%emt 0:00:08]} 40. Rc7 {[%emt 0:04:10]} g5 {[%emt 0:03:44][%cal Bg7g5,Bg5g4,Bg4g3][%mdl 32]} 41. c5 {[%emt 0:16:41]} f5 {[%emt 0:00:00] aiming for ...g4.} 42. Rd7 $2 {[%emt 0:00:00]} (42. c6 $15) 42... g4 $1 $19 {[%emt 0:05:14] ( -> ...g3)} 43. c6 $2 {[%emt 0:00:00]} (43. Rb7 $19 g3 44. Rb4+ e4 45. dxe4) 43... g3 {[%emt 0:01:04]} 44. c4 {[%emt 0:00:00]} Rh2+ {[%emt 0:01:43]} 45. Kg1 {[%emt 0:00:00] [#]} Kf3 $1 {[%emt 0:00:28]} 46. Ra7 {[%emt 0:00:00]} Rh6 {[%emt 0:00:28]} 47. d4 {[%emt 0:01:14]} exd4 {[%emt 0:01:46]} 48. Ra3+ {[%emt 0:01:27]} Kg4 {[%emt 0:00:08]} 49. Rd3 {[%emt 0:00:49]} Rxc6 {[%emt 0:00:17]} 50. Rxd4+ {[%emt 0:00:04]} f4 {[%emt 0:00:08]} 51. Kg2 {[%emt 0:00:13]} Ra6 {[%emt 0:00:11]} 52. c5 {[%emt 0:01:38]} Ra2+ {[%emt 0:00:12]} 53. Kg1 {[%emt 0:00:42]} Kh3 {[%emt 0:00:16]} 54. Rxf4 {[%emt 0:00:31]} Ra1+ {[%emt 0:00:06]} ({And not} 54... Rc2 55. Rf1 $15) 55. Rf1 {[%emt 0:00:03] [#]} Rxf1+ $1 {[%emt 0:00:05]} 56. Kxf1 {[%emt 0:00:02] Hoping for Kg1.} Kh2 {[%emt 0:00:08] Weighted Error Value: White=0.22 (precise) /Black=0.04 (flawless)} 0-1